bitfinex/quotes_BTCUSD_20250610
["timestamp","ask_amount","ask_price","bid_price","bid_amount"]
[1749541072297,0.73573486,109230.0,109220.0,0.03495073]
[1749541072972,0.73573486,109230.0,109220.0,0.00295073]
[1749541073186,0.63657486,109230.0,109220.0,0.03475073]
[1749541073398,0.72973486,109230.0,109220.0,0.03475073]
[1749541073619,0.73073486,109230.0,109220.0,0.03475073]
[1749541073837,0.63657486,109230.0,109220.0,0.03475073]
[1749541074055,0.73273486,109230.0,109220.0,0.07768238]
[1749541074262,0.73273486,109230.0,109220.0,0.06059073]
[1749541074475,0.73273486,109230.0,109220.0,0.07768236]
[1749541074699,0.73273486,109230.0,109220.0,0.03475073]
[1749541074918,0.73273486,109230.0,109220.0,0.07768236]
[1749541074919,0.73173486,109230.0,109220.0,0.07768236]
[1749541075134,0.72973486,109230.0,109220.0,0.06059073]
[1749541075359,0.72973486,109230.0,109220.0,0.07768236]
[1749541076482,0.72973486,109230.0,109220.0,0.06059073]
[1749541078209,0.72973486,109230.0,109220.0,0.06009073]
[1749541078681,0.77346716,109230.0,109220.0,0.00245073]
[1749541079313,0.74623486,109230.0,109220.0,0.00245073]
[1749541081493,0.72969486,109230.0,109220.0,0.01755073]
[1749541081707,0.63357486,109230.0,109220.0,0.05890046]
[1749541081934,0.72969486,109230.0,109220.0,0.05890044]
[1749541082153,0.72969486,109230.0,109220.0,0.0589004]
[1749541082610,0.72969486,109230.0,109220.0,0.04173395]
[1749541083031,0.72969486,109230.0,109220.0,0.05890039]
[1749541083240,0.72969486,109230.0,109220.0,0.04173395]
[1749541083449,0.72969486,109230.0,109220.0,0.03315073]
[1749541083655,0.72969486,109230.0,109220.0,0.05031717]
[1749541084265,0.72969486,109230.0,109220.0,0.05031718]
[1749541084726,0.72969486,109230.0,109220.0,0.05031717]
[1749541084934,0.72969486,109230.0,109220.0,0.05890039]
[1749541085362,0.72969486,109230.0,109220.0,0.04173395]
[1749541085763,0.72969486,109230.0,109220.0,0.05890039]
[1749541086006,0.72969486,109230.0,109220.0,0.05031717]
[1749541086472,0.72969486,109230.0,109220.0,0.05890039]
[1749541086686,0.63357486,109230.0,109220.0,0.05890038]
[1749541086913,0.29357486,109230.0,109220.0,0.05786856]
[1749541087134,0.29357486,109230.0,109220.0,0.05889761]
[1749541087135,0.38969486,109230.0,109220.0,0.05889761]
[1749541087353,0.72969486,109230.0,109220.0,0.05889761]
[1749541087567,0.63357486,109230.0,109220.0,0.05886746]
[1749541087786,0.72969486,109230.0,109220.0,0.0417029]
[1749541088011,0.72969486,109230.0,109220.0,0.05880724]
[1749541088469,0.72969486,109230.0,109220.0,0.04170293]
[1749541088684,0.72969486,109230.0,109220.0,0.05880736]
[1749541088919,0.72969486,109230.0,109220.0,0.05025516]
[1749541089128,0.72969486,109230.0,109220.0,0.05880737]
[1749541089335,0.72969486,109230.0,109220.0,0.05254388]
[1749541089558,0.72969486,109230.0,109220.0,0.06109609]
[1749541089770,0.63357486,109230.0,109220.0,0.04399166]
[1749541089992,0.72969486,109230.0,109220.0,0.06109599]
[1749541090217,0.72969486,109230.0,109220.0,0.0417029]
[1749541090649,0.72969486,109230.0,109220.0,0.05025507]
[1749541090875,0.72969486,109230.0,109220.0,0.05880724]
[1749541091094,0.72969486,109230.0,109220.0,0.0417029]
[1749541091328,0.72969486,109230.0,109220.0,0.04170283]
[1749541091584,0.72969486,109230.0,109220.0,0.05025494]
[1749541091771,0.72969486,109230.0,109220.0,0.04169564]
[1749541092018,0.72969486,109230.0,109220.0,0.05024055]
[1749541092227,0.72969486,109230.0,109220.0,0.05878544]
[1749541092868,0.63357486,109230.0,109220.0,0.05879448]
[1749541093088,0.72965486,109230.0,109220.0,0.04170015]
[1749541093304,0.72965486,109230.0,109220.0,0.04170017]
[1749541093529,0.72965486,109230.0,109220.0,0.04170016]
[1749541093736,0.72965486,109230.0,109220.0,0.05879902]
[1749541094173,0.72965486,109230.0,109220.0,0.06079902]
[1749541094593,0.63357486,109230.0,109220.0,0.06279902]
[1749541094803,0.72965486,109230.0,109220.0,0.06279902]
[1749541095018,0.72965486,109230.0,109220.0,0.05424959]
[1749541095229,0.72965486,109230.0,109220.0,0.04570016]
[1749541095465,0.72965486,109230.0,109220.0,0.0542496]
[1749541095676,0.72965486,109230.0,109220.0,0.06279908]
[1749541095892,0.72965486,109230.0,109220.0,0.08859908]
[1749541096101,0.72965486,109230.0,109220.0,0.07299908]
[1749541096312,0.72965486,109230.0,109220.0,0.05590018]
[1749541096556,0.72965486,109230.0,109220.0,0.07301145]
[1749541096766,0.72965486,109230.0,109220.0,0.07220405]
[1749541096977,0.72965486,109230.0,109220.0,0.08931055]
[1749541097200,0.72965486,109230.0,109220.0,0.072204]
[1749541097418,0.72965486,109230.0,109220.0,0.08931055]
[1749541097868,0.72965486,109230.0,109220.0,0.06365073]
[1749541098074,0.72965486,109230.0,109220.0,0.08075728]
[1749541098283,0.72965486,109230.0,109220.0,0.06365073]
[1749541098499,0.72965486,109230.0,109220.0,0.08931055]
[1749541098917,0.72965486,109230.0,109220.0,0.06365073]
[1749541099160,0.72965486,109230.0,109220.0,0.08931055]
[1749541099391,0.72965486,109230.0,109220.0,0.06365073]
[1749541099602,0.72965486,109230.0,109220.0,0.05791089]
[1749541099812,0.72965486,109230.0,109220.0,0.0579111]
[1749541100027,0.38965486,109230.0,109220.0,0.05791165]
[1749541100244,0.38965486,109230.0,109220.0,0.01500439]
[1749541100470,0.38965486,109230.0,109220.0,0.04936777]
[1749541100677,0.38965486,109230.0,109220.0,0.04936772]
[1749541100884,0.38965486,109230.0,109220.0,0.0579462]
[1749541101122,0.29357486,109230.0,109220.0,0.05794617]
[1749541101336,0.29357486,109230.0,109220.0,0.03221073]
[1749541101337,0.38961486,109230.0,109220.0,0.03221073]
[1749541101551,0.38961486,109230.0,109220.0,0.04078921]
[1749541101812,0.38961486,109230.0,109220.0,0.04078925]
[1749541101813,0.29357486,109230.0,109220.0,0.04078925]
[1749541102028,0.38961486,109230.0,109220.0,0.04936778]
[1749541102239,0.38961486,109230.0,109220.0,0.03221073]
[1749541102451,0.38961486,109230.0,109220.0,0.0579463]
[1749541102857,0.38961486,109230.0,109220.0,0.02360778]
[1749541103099,0.40521486,109230.0,109220.0,0.05794642]
[1749541103315,0.40521486,109230.0,109220.0,0.03221073]
[1749541103524,0.40521486,109230.0,109220.0,0.05794653]
[1749541103740,0.40521486,109230.0,109220.0,0.05794656]
[1749541104166,0.40521486,109230.0,109220.0,0.04078934]
[1749541104385,0.38961486,109230.0,109220.0,0.05794656]
[1749541104810,0.38961486,109230.0,109220.0,0.04936795]
[1749541105025,0.38961486,109230.0,109220.0,0.05794656]
[1749541105254,0.38961486,109230.0,109220.0,0.04936795]
[1749541105466,0.40541486,109230.0,109220.0,0.04078933]
[1749541105717,0.42141486,109230.0,109220.0,0.05794656]
[1749541105930,0.74541486,109230.0,109220.0,0.04936794]
[1749541106157,0.74541486,109230.0,109220.0,0.03221073]
[1749541106602,0.74541486,109230.0,109220.0,0.03115584]
[1749541106828,0.7453011,109230.0,109220.0,0.05794657]
[1749541107043,0.7453011,109230.0,109220.0,0.05794659]
[1749541107488,0.7615011,109230.0,109220.0,0.05794678]
[1749541107697,0.7615011,109230.0,109220.0,0.04078941]
[1749541107908,0.7615011,109230.0,109220.0,0.04078943]
[1749541108114,0.7615011,109230.0,109220.0,0.03221073]
[1749541108537,0.7453011,109230.0,109220.0,0.04936813]
[1749541108752,0.7453011,109230.0,109220.0,0.05794683]
[1749541108970,0.7453011,109230.0,109220.0,0.03221073]
[1749541109193,0.7453011,109230.0,109220.0,0.04936813]
[1749541109407,0.7453011,109230.0,109220.0,0.05794683]
[1749541109624,0.7453011,109230.0,109220.0,0.04078943]
[1749541109843,0.7453011,109230.0,109220.0,0.03221073]
[1749541110050,0.7453011,109230.0,109220.0,0.05794683]
[1749541110676,0.7453011,109230.0,109220.0,0.04078943]
[1749541110888,0.7295011,109230.0,109220.0,0.05793823]
[1749541111104,0.7294611,109230.0,109220.0,0.05793824]
[1749541111541,0.7294611,109230.0,109220.0,0.04936229]
[1749541111757,0.7294611,109230.0,109220.0,0.05793808]
[1749541111987,0.7294611,109230.0,109220.0,0.05793807]
[1749541112172,0.7294611,109230.0,109220.0,0.05793804]
[1749541112394,0.7294611,109230.0,109220.0,0.05793807]
[1749541112604,0.7294611,109230.0,109220.0,0.04078651]
[1749541112811,0.7294611,109230.0,109220.0,0.05793807]
[1749541113031,0.6334611,109230.0,109220.0,0.05793807]
[1749541113277,0.6334611,109230.0,109220.0,0.08533353]
[1749541113491,0.3894611,109230.0,109220.0,0.62291379]
[1749541113724,0.3894611,109230.0,109220.0,0.66046112]
[1749541113933,0.2934611,109230.0,109220.0,0.13609849]
[1749541114143,0.2934611,109230.0,109220.0,0.13609836]
[1749541114144,0.3894611,109230.0,109220.0,0.13609836]
[1749541114357,0.2934611,109230.0,109220.0,0.15324837]
[1749541114786,0.2934611,109230.0,109220.0,0.12585221]
[1749541114787,0.3894611,109230.0,109220.0,0.12585221]
[1749541114992,0.3894611,109230.0,109220.0,0.1172774]
[1749541115202,0.3894611,109230.0,109220.0,0.12585198]
[1749541115412,0.3894611,109230.0,109220.0,0.11727717]
[1749541115628,0.3894611,109230.0,109220.0,0.12585198]
[1749541115865,0.7294611,109230.0,109220.0,0.11727718]
[1749541116287,0.7294611,109230.0,109220.0,0.17203838]
[1749541116493,0.7294611,109230.0,109220.0,0.17203831]
[1749541116716,0.7294611,109230.0,109220.0,0.18061308]
[1749541117208,0.7294611,109230.0,109220.0,0.66813573]
[1749541117209,0.6334611,109230.0,109220.0,0.66813573]
[1749541117450,0.7294611,109230.0,109220.0,0.60147719]
[1749541117673,0.7294611,109230.0,109220.0,0.67441761]
[1749541117904,0.7294611,109230.0,109220.0,0.16823684]
[1749541118133,0.7294611,109230.0,109220.0,0.66963549]
[1749541118360,0.7294611,109230.0,109220.0,0.61155078]
[1749541118584,0.7294611,109230.0,109220.0,0.59440624]
[1749541118585,0.6334611,109230.0,109220.0,0.59440624]
[1749541119045,0.6334611,109230.0,109220.0,0.61155073]
[1749541119046,0.62453618,109230.0,109220.0,0.61155073]
[1749541119278,0.28453618,109230.0,109220.0,0.61155071]
[1749541119505,0.28453618,109230.0,109220.0,0.59440624]
[1749541119739,0.28453618,109230.0,109220.0,0.61155055]
[1749541119973,0.28453618,109230.0,109220.0,0.59440624]
[1749541120186,0.28453618,109230.0,109220.0,0.61155057]
[1749541120392,0.28453618,109230.0,109220.0,0.61155049]
[1749541120597,0.28453618,109230.0,109220.0,0.61155048]
[1749541120815,0.28453618,109230.0,109220.0,1.01155048]
[1749541121275,0.28453618,109230.0,109220.0,0.99440624]
[1749541121486,0.28453618,109230.0,109220.0,1.01155045]
[1749541121699,0.28453618,109230.0,109220.0,1.21155045]
[1749541121910,0.28453618,109230.0,109220.0,1.21155044]
[1749541122141,0.28453618,109230.0,109220.0,1.19440624]
[1749541122382,0.28453618,109230.0,109220.0,1.24917391]
[1749541122586,0.28453618,109230.0,109220.0,1.26631456]
[1749541123443,0.28453618,109230.0,109220.0,1.24917391]
[1749541123667,0.28453618,109230.0,109220.0,1.26631456]
[1749541123899,0.28453618,109230.0,109220.0,1.36227456]
[1749541124323,0.28453618,109230.0,109220.0,0.85506305]
[1749541124536,0.28453618,109230.0,109220.0,1.36227421]
[1749541124754,0.28453618,109230.0,109220.0,1.34513391]
[1749541124969,0.28453618,109230.0,109220.0,1.36227412]
[1749541125181,0.28453618,109230.0,109220.0,1.34513391]
[1749541125385,0.28453618,109230.0,109220.0,1.36227412]
[1749541125586,0.28453618,109230.0,109220.0,1.34513391]
[1749541125997,0.28453618,109230.0,109220.0,1.36229473]
[1749541126203,0.28453618,109230.0,109220.0,1.36229471]
[1749541126415,0.28453618,109230.0,109220.0,1.36219117]
[1749541126624,0.11059087,109230.0,109220.0,0.85497966]
[1749541126834,0.29369075,109230.0,109220.0,1.30639275]
[1749541127248,0.29369075,109230.0,109220.0,1.34405868]
[1749541127498,0.29369075,109230.0,109220.0,1.36214653]
[1749541127696,0.29369075,109230.0,109220.0,1.34308941]
[1749541128091,0.29369075,109230.0,109220.0,1.36214654]
[1749541128300,0.29369075,109230.0,109220.0,1.34508941]
[1749541128519,0.20189289,109230.0,109220.0,1.36214654]
[1749541128761,0.20189289,109230.0,109220.0,1.36214648]
[1749541129217,0.19273832,109230.0,109220.0,1.36214642]
[1749541129426,0.19273832,109230.0,109220.0,1.34308941]
[1749541129856,0.19373832,109230.0,109220.0,1.34308941]
[1749541130275,0.19373832,109230.0,109220.0,1.36014653]
[1749541130486,0.1845835,109230.0,109220.0,1.34308941]
[1749541130692,0.1845835,109230.0,109220.0,1.36014653]
[1749541130899,0.1845835,109230.0,109220.0,1.34308941]
[1749541131353,0.1845835,109230.0,109220.0,1.34296941]
[1749541131574,0.1845835,109230.0,109220.0,1.36002692]
[1749541131796,0.1845835,109230.0,109220.0,1.34296941]
[1749541132007,0.1845835,109230.0,109220.0,1.22136941]
[1749541132182,0.1845835,109230.0,109220.0,0.71415792]
[1749541132406,0.1845835,109230.0,109220.0,1.36002704]
[1749541132755,0.1845835,109230.0,109220.0,0.71415792]
[1749541133031,0.1845835,109230.0,109220.0,1.36002706]
[1749541133432,0.1845835,109230.0,109220.0,0.85281557]
[1749541133602,0.1845835,109230.0,109220.0,1.36002706]
[1749541133968,0.1845835,109230.0,109220.0,1.34296941]
[1749541134587,0.1845835,109230.0,109220.0,1.36002706]
[1749541134789,0.1845835,109230.0,109220.0,1.34296941]
[1749541134996,0.1845835,109230.0,109220.0,1.36002709]
[1749541135422,0.1845835,109230.0,109220.0,1.34296941]
[1749541135605,0.1845835,109230.0,109220.0,1.36002705]
[1749541135820,0.1845835,109230.0,109220.0,1.34296941]
[1749541136045,0.1845835,109230.0,109220.0,1.36002707]
[1749541136269,0.1845835,109230.0,109220.0,1.23842707]
[1749541136507,0.1845835,109230.0,109220.0,1.23844812]
[1749541136735,0.1845835,109230.0,109220.0,0.85283663]
[1749541136959,0.1845835,109230.0,109220.0,1.36004812]
[1749541137175,0.1845835,109230.0,109220.0,1.36004836]
[1749541137393,0.1845835,109230.0,109220.0,1.36004843]
[1749541137635,0.1845835,109230.0,109220.0,1.22136941]
[1749541137850,0.37230136,109230.0,109220.0,0.53485273]
[1749541138082,0.37230136,109230.0,109220.0,1.06017444]
[1749541138304,0.37230136,109230.0,109220.0,1.06017457]
[1749541138533,0.37230136,109230.0,109220.0,1.02368586]
[1749541139003,0.37230136,109230.0,109220.0,1.03167082]
[1749541139266,0.37230136,109230.0,109220.0,1.06434986]
[1749541139499,0.1845835,109230.0,109220.0,1.26434966]
[1749541139730,0.1845835,109230.0,109220.0,1.24727082]
[1749541139961,0.1845835,109230.0,109220.0,1.19254765]
[1749541140250,0.01063794,109230.0,109220.0,1.69872841]
[1749541140512,0.02894717,109230.0,109220.0,1.62161278]
[1749541140738,0.22120196,109230.0,109220.0,1.62161251]
[1749541140995,0.22120196,109230.0,109220.0,1.62264313]
[1749541141415,0.21204764,109230.0,109220.0,1.09827688]
[1749541141630,0.21204764,109230.0,109220.0,1.62264314]
[1749541142295,0.21193617,109230.0,109220.0,1.62264314]
[1749541142510,0.21193617,109230.0,109220.0,1.60548837]
[1749541142746,0.21193617,109230.0,109220.0,1.62264313]
[1749541143403,0.02883629,109230.0,109220.0,1.62264313]
[1749541143613,0.01968138,109230.0,109220.0,1.62264313]
[1749541143832,0.02883629,109230.0,109220.0,1.62264296]
[1749541144095,0.0288362,109230.0,109220.0,1.5497022]
[1749541144312,0.03799119,109230.0,109220.0,1.54970222]
[1749541144531,0.03799119,109230.0,109220.0,1.54970221]
[1749541145148,0.03799111,109230.0,109220.0,1.54970221]
[1749541145576,0.03799111,109230.0,109220.0,1.54968381]
[1749541145805,0.03799111,109230.0,109220.0,1.54968382]
[1749541146039,0.03799111,109230.0,109220.0,1.62842765]
[1749541146267,0.03799111,109230.0,109220.0,1.71958293]
[1749541146268,0.01968087,109230.0,109220.0,1.71958293]
[1749541146491,0.03799043,109230.0,109220.0,1.71958293]
[1749541146754,0.03799043,109230.0,109220.0,1.73671904]
[1749541146981,0.03799034,109230.0,109220.0,1.73671904]
[1749541147210,0.03799034,109230.0,109220.0,1.73671902]
[1749541147423,0.04714533,109230.0,109220.0,1.73671906]
[1749541147644,0.04714533,109230.0,109220.0,1.71958293]
[1749541147851,0.22109098,109230.0,109220.0,1.73671906]
[1749541148093,0.22109098,109230.0,109220.0,1.7367191]
[1749541148316,0.20278184,109230.0,109220.0,1.8553191]
[1749541148528,0.20278184,109230.0,109220.0,1.83818293]
[1749541148748,0.20278184,109230.0,109220.0,1.73272836]
[1749541148965,0.19362702,109230.0,109220.0,1.78762591]
[1749541149183,0.31742488,109230.0,109220.0,0.82248179]
[1749541149395,0.31742488,109230.0,109220.0,0.23796671]
[1749541149632,0.31742488,109230.0,109220.0,0.18040999]
[1749541149849,0.31742488,109230.0,109220.0,0.56327158]
[1749541150065,0.31742488,109230.0,109220.0,0.5793793]
[1749541150278,0.31742488,109230.0,109220.0,0.56327158]
[1749541150495,0.31742488,109230.0,109220.0,0.56224085]
[1749541150705,0.31742488,109230.0,109220.0,0.57937926]
[1749541151133,0.31742488,109230.0,109220.0,0.57937927]
[1749541151362,0.31742488,109230.0,109220.0,0.58041]
[1749541151578,0.28542488,109230.0,109220.0,0.63640057]
[1749541151816,0.30182488,109230.0,109220.0,1.08762138]
[1749541152027,0.30182488,109230.0,109220.0,1.07048307]
[1749541152246,0.30182488,109230.0,109220.0,1.09691458]
[1749541152460,0.31742488,109230.0,109220.0,1.08659074]
[1749541152669,0.31742488,109230.0,109220.0,1.08762149]
[1749541153113,0.31742488,109230.0,109220.0,1.07048307]
[1749541153544,0.31742488,109230.0,109220.0,1.08762146]
[1749541153732,0.31742488,109230.0,109220.0,1.08659073]
[1749541153978,0.31742488,109230.0,109220.0,1.08762146]
[1749541154399,0.31742488,109230.0,109220.0,1.07048307]
[1749541154604,0.31742488,109230.0,109220.0,1.08761911]
[1749541155046,0.31742488,109230.0,109220.0,1.08658838]
[1749541155478,0.31742488,109230.0,109220.0,1.07879588]
[1749541155696,0.31742488,109230.0,109220.0,1.09696255]
[1749541156115,0.31742488,109230.0,109220.0,1.09696272]
[1749541156325,0.31742488,109230.0,109220.0,1.09696268]
[1749541156539,0.31742488,109230.0,109220.0,1.07982661]
[1749541156756,0.31742488,109230.0,109220.0,1.09695655]
[1749541156980,0.31742488,109230.0,109220.0,0.66287396]
[1749541157190,0.31742488,109230.0,109220.0,1.09695677]
[1749541157417,0.31742488,109230.0,109220.0,0.75179476]
[1749541157847,0.31742488,109230.0,109220.0,0.634209]
[1749541158058,0.31742488,109230.0,109220.0,0.63421131]
[1749541158290,0.31742488,109230.0,109220.0,0.63421143]
[1749541158733,0.31742488,109230.0,109220.0,0.11194844]
[1749541158938,0.31742488,109230.0,109220.0,0.11124235]
[1749541159374,0.31742488,109230.0,109220.0,0.08325207]
[1749541159652,0.31742488,109230.0,109220.0,0.07468457]
[1749541159856,0.31742488,109230.0,109220.0,0.07468552]
[1749541160274,0.31742488,109230.0,109220.0,0.0832531]
[1749541160502,0.31742488,109230.0,109220.0,0.05583347]
[1749541160720,0.31742488,109230.0,109220.0,0.0558335]
[1749541161419,0.31742488,109230.0,109220.0,0.03869832]
[1749541161642,0.31742488,109230.0,109220.0,0.03013073]
[1749541162116,0.31742488,109230.0,109220.0,0.05579209]
[1749541162338,0.31742488,109230.0,109220.0,0.04723825]
[1749541162575,0.31742488,109230.0,109220.0,0.03868449]
[1749541162813,0.31742488,109230.0,109220.0,0.05472161]
[1749541163044,0.75326488,109230.0,109220.0,0.05472161]
[1749541163277,0.68491188,109230.0,109220.0,0.04719896]
[1749541163526,0.90616488,109230.0,109220.0,0.05575246]
[1749541163762,0.90616488,109230.0,109220.0,0.0386444]
[1749541163983,0.81032488,109230.0,109220.0,0.08317113]
[1749541164215,0.90616488,109230.0,109220.0,0.08317101]
[1749541164682,0.90616488,109230.0,109220.0,0.08317099]
[1749541164932,1.24616488,109230.0,109220.0,0.08317041]
[1749541165186,1.15032488,109230.0,109220.0,0.05751035]
[1749541165414,1.15032488,109230.0,109220.0,0.08317005]
[1749541165652,1.24616488,109230.0,109220.0,0.07461683]
[1749541165888,1.24616488,109230.0,109220.0,0.08317005]
[1749541166122,1.13472488,109230.0,109220.0,0.08545876]
[1749541166354,1.21416488,109230.0,109220.0,0.59325519]
[1749541166578,1.13442488,109230.0,109220.0,0.13859298]
[1749541166807,1.23026488,109230.0,109220.0,0.64580447]
[1749541167060,0.87416488,109230.0,109220.0,0.62869799]
[1749541167306,0.87416488,109230.0,109220.0,0.64579882]
[1749541167522,0.87416488,109230.0,109220.0,0.64579885]
[1749541167964,0.87412488,109230.0,109220.0,0.64579885]
[1749541168375,0.87412488,109230.0,109220.0,0.62869799]
[1749541168840,0.88912488,109230.0,109220.0,0.57386]
[1749541169075,0.88912488,109230.0,109220.0,0.13858738]
[1749541169284,0.88912488,109230.0,109220.0,0.62869799]
[1749541169494,0.88912488,109230.0,109220.0,0.64580546]
[1749541169719,0.88912488,109230.0,109220.0,0.13859397]
[1749541169934,0.88912488,109230.0,109220.0,0.64580546]
[1749541170146,0.87412488,109230.0,109220.0,0.64580529]
[1749541170372,0.87412488,109230.0,109220.0,0.1385938]
[1749541170586,0.87412488,109230.0,109220.0,0.62869799]
[1749541170800,0.77832488,109230.0,109220.0,0.62869799]
[1749541171026,0.77832488,109230.0,109220.0,0.62314021]
[1749541171241,0.77832488,109230.0,109220.0,0.64024701]
[1749541171452,0.77832488,109230.0,109220.0,0.62514701]
[1749541171685,0.77832488,109230.0,109220.0,0.60924701]
[1749541171899,0.77832488,109230.0,109220.0,0.59214021]
[1749541172382,0.77832488,109230.0,109220.0,0.60925034]
[1749541172618,0.77832488,109230.0,109220.0,0.05928872]
[1749541172841,0.80982488,109230.0,109220.0,0.13854042]
[1749541173061,0.80982488,109230.0,109220.0,0.13750969]
[1749541173279,0.80982488,109230.0,109220.0,0.13854088]
[1749541173717,0.80982488,109230.0,109220.0,0.12142962]
[1749541173935,0.80982488,109230.0,109220.0,0.13854084]
[1749541174149,0.80982488,109230.0,109220.0,0.11290087]
[1749541174368,0.80982488,109230.0,109220.0,0.11108316]
[1749541174571,0.80982488,109230.0,109220.0,0.09397158]
[1749541174783,0.80982488,109230.0,109220.0,0.11108339]
[1749541175008,0.80982488,109230.0,109220.0,0.11108343]
[1749541175442,0.80982488,109230.0,109220.0,0.09397158]
[1749541175860,0.80982488,109230.0,109220.0,0.11109271]
[1749541176076,0.80982488,109230.0,109220.0,0.09397158]
[1749541176282,0.80982488,109230.0,109220.0,0.11109271]
[1749541176496,0.80982488,109230.0,109220.0,0.05807276]
[1749541176704,0.80982488,109230.0,109220.0,0.11110388]
[1749541176934,0.80971565,109230.0,109220.0,0.11110388]
[1749541177150,0.80971565,109230.0,109220.0,0.11007315]
[1749541177371,0.80971565,109230.0,109220.0,0.11110388]
[1749541177580,0.80971565,109230.0,109220.0,0.08371631]
[1749541177791,0.80971565,109230.0,109220.0,0.08371632]
[1749541178007,0.80971565,109230.0,109220.0,0.09398785]
[1749541178227,0.80971565,109230.0,109220.0,0.11111283]
[1749541178455,0.80971565,109230.0,109220.0,0.11111291]
[1749541178927,0.80971565,109230.0,109220.0,0.08317485]
[1749541179161,0.80971565,109230.0,109220.0,0.05748695]
[1749541179396,0.80971565,109230.0,109220.0,0.08317559]
[1749541179580,0.80971565,109230.0,109220.0,0.05748695]
[1749541179783,0.90547565,109230.0,109220.0,0.07461272]
[1749541179992,0.90547565,109230.0,109220.0,0.06604983]
[1749541180433,0.90547565,109230.0,109220.0,0.08317562]
[1749541180650,0.90547565,109230.0,109220.0,0.05748695]
[1749541180867,0.90547565,109230.0,109220.0,0.08317563]
[1749541181078,0.90547565,109230.0,109220.0,0.05748695]
[1749541181293,0.90547565,109230.0,109220.0,0.08317561]
[1749541181508,0.90547565,109230.0,109220.0,0.05748695]
[1749541181723,0.90547565,109230.0,109220.0,0.08317559]
[1749541182162,0.90547565,109230.0,109220.0,0.0831756]
[1749541182373,0.90547565,109230.0,109220.0,0.08317563]
[1749541182571,0.90547565,109230.0,109220.0,0.08317478]
[1749541182997,0.90547565,109230.0,109220.0,0.07461217]
[1749541183200,0.90547565,109230.0,109220.0,0.08317478]
[1749541183414,0.90547565,109230.0,109220.0,0.05748695]
[1749541183625,0.90547565,109230.0,109220.0,0.07461203]
[1749541183843,0.90547565,109230.0,109220.0,0.08317457]
[1749541184049,0.90547565,109230.0,109220.0,0.08317458]
[1749541184277,0.90547565,109230.0,109220.0,0.06604951]
[1749541184487,0.90547565,109230.0,109220.0,0.07461207]
[1749541185118,0.90547565,109230.0,109220.0,0.05748695]
[1749541185324,0.90547565,109230.0,109220.0,0.0831746]
[1749541185544,0.90547565,109230.0,109220.0,0.0575346]
[1749541185762,0.90547565,109230.0,109220.0,0.0831746]
[1749541185988,1.24547565,109230.0,109220.0,0.05753505]
[1749541186225,1.24547565,109230.0,109220.0,0.05578062]
[1749541186441,1.27296265,109230.0,109220.0,0.05578157]
[1749541186655,1.27296265,109230.0,109220.0,0.03009073]
[1749541187781,1.27296265,109230.0,109220.0,0.05578226]
[1749541188016,1.27296265,109230.0,109220.0,0.03865457]
[1749541188266,1.27296265,109230.0,109220.0,0.01301458]
[1749541188507,1.27296265,109230.0,109220.0,0.04721835]
[1749541188726,1.27296265,109230.0,109220.0,0.03865455]
[1749541188953,1.27296265,109230.0,109220.0,0.03009073]
[1749541189176,1.27296265,109230.0,109220.0,0.03865457]
[1749541189400,1.27296265,109230.0,109220.0,0.03865458]
[1749541189627,1.27296265,109230.0,109220.0,0.04721843]
[1749541189864,1.27296265,109230.0,109220.0,0.03865457]
[1749541190130,1.27296265,109230.0,109220.0,0.02911152]
[1749541190355,1.27296265,109230.0,109220.0,0.03865453]
[1749541190574,1.27296265,109230.0,109220.0,0.05578184]
[1749541190808,1.27296265,109230.0,109220.0,0.03865453]
[1749541191029,1.27296265,109230.0,109220.0,0.04721797]
[1749541191246,1.27296265,109230.0,109220.0,0.05578817]
[1749541191474,1.27296265,109230.0,109220.0,0.03865654]
[1749541191703,1.27296265,109230.0,109220.0,0.05578814]
[1749541191965,1.27296265,109230.0,109220.0,0.05578816]
[1749541192184,1.27296265,109230.0,109220.0,0.05475743]
[1749541192406,1.27296265,109230.0,109220.0,0.03865654]
[1749541192646,1.27296265,109230.0,109220.0,0.03009073]
[1749541192878,1.27296265,109230.0,109220.0,0.03762581]
[1749541193106,1.17720265,109230.0,109220.0,0.03009073]
[1749541193330,1.27296265,109230.0,109220.0,0.05578811]
[1749541193558,1.27296265,109230.0,109220.0,0.05578147]
[1749541193784,1.27296265,109230.0,109220.0,0.03864985]
[1749541194024,1.27296265,109230.0,109220.0,0.0557681]
[1749541194246,1.27296265,109230.0,109220.0,0.05576809]
[1749541194510,1.27296265,109230.0,109220.0,0.03864985]
[1749541195024,1.27292265,109230.0,109220.0,0.05576808]
[1749541195256,1.27292265,109230.0,109220.0,0.03864984]
[1749541195480,1.27292265,109230.0,109220.0,0.03009073]
[1749541195715,1.27292265,109230.0,109220.0,0.03864984]
[1749541195956,1.27292265,109230.0,109220.0,0.04720368]
[1749541196201,1.27292265,109230.0,109220.0,0.03009073]
[1749541196447,1.27292265,109230.0,109220.0,0.0386472]
[1749541196671,1.27292265,109230.0,109220.0,0.05576015]
[1749541196899,1.27292265,109230.0,109220.0,0.05576016]
[1749541197131,1.27292265,109230.0,109220.0,0.03864723]
[1749541197353,1.27292265,109230.0,109220.0,0.05576032]
[1749541197587,1.27292265,109230.0,109220.0,0.05576026]
[1749541197878,1.27292265,109230.0,109220.0,0.03864724]
[1749541198110,1.24543565,109230.0,109220.0,0.03009073]
[1749541198329,1.24543565,109230.0,109220.0,0.05576035]
[1749541198552,1.24543565,109230.0,109220.0,0.04720381]
[1749541198776,1.24543565,109230.0,109220.0,0.05576029]
[1749541198998,1.24543565,109230.0,109220.0,0.04720377]
[1749541199168,1.24543565,109230.0,109220.0,0.03009073]
[1749541199396,1.24543565,109230.0,109220.0,0.05575291]
[1749541199576,1.24543565,109230.0,109220.0,0.04719885]
[1749541199781,1.24543565,109230.0,109220.0,0.03009073]
[1749541200371,1.24543565,109230.0,109220.0,0.03864482]
[1749541200787,1.24543565,109230.0,109220.0,0.03864483]
[1749541201014,1.24543565,109230.0,109220.0,0.03009073]
[1749541201230,1.24543565,109230.0,109220.0,0.03864483]
[1749541201440,1.24543565,109230.0,109220.0,0.03009073]
[1749541201867,1.24543565,109230.0,109220.0,0.03865187]
[1749541202081,1.24543565,109230.0,109220.0,0.05577416]
[1749541203123,1.24543565,109230.0,109220.0,0.03762114]
[1749541203303,1.24543565,109230.0,109220.0,0.05577415]
[1749541203545,1.24543565,109230.0,109220.0,0.03762114]
[1749541203727,1.24543565,109230.0,109220.0,0.05577415]
[1749541203891,1.24543565,109230.0,109220.0,0.05474336]
[1749541204098,1.24543565,109230.0,109220.0,0.03865182]
[1749541204318,1.24543565,109230.0,109220.0,0.04721289]
[1749541204527,1.24543565,109230.0,109220.0,0.05577398]
[1749541204732,1.24543565,109230.0,109220.0,0.03009073]
[1749541204934,1.24543565,109230.0,109220.0,0.03865179]
[1749541205151,1.24543565,109230.0,109220.0,0.03009073]
[1749541205400,1.24543565,109230.0,109220.0,0.05577391]
[1749541205553,1.24543565,109230.0,109220.0,0.04721286]
[1749541205985,1.24543565,109230.0,109220.0,0.05577392]
[1749541206403,1.24543565,109230.0,109220.0,0.04722031]
[1749541207023,1.24543565,109230.0,109220.0,0.03009073]
[1749541207254,1.24543565,109230.0,109220.0,0.03865551]